[Event "44th Chess Olympiad Open 2022"]
[Site "Chennai"]
[Date "2022.08.07"]
[Round "9.22"]
[White "Bersamina, Paulo"]
[Black "Pantsulaia, Levan"]
[Result "0-1"]
[WhiteElo "2429"]
[BlackElo "2581"]
[Annotator "TA"]
[PlyCount "70"]
[EventDate "2022.??.??"]
[TimeControl "60"]

{[%evp 12,70,38,35,35,37,35,31,37,35,50,8,21,0,10,-4,0,0,0,-25,49,-20,-6,-45,
-53,-44,-39,-164,-157,-183,-186,-183,-161,-253,-248,-246,-235,-193,-234,-303,
-300,-341,-341,-346,-241,-231,-235,-272,0,-235,-211,-362,-343,-708,-689,-876,
-827,-812,-805,-5457,-1416]} 1. e4 {[%emt 0:00:04]} c5 {[%emt 0:00:10]} 2. Nf3
{[%emt 0:00:06]} e6 {[%emt 0:00:14]} 3. d4 {[%emt 0:01:16]} cxd4 {[%emt 0:00:
00]} 4. Nxd4 {[%emt 0:00:07]} a6 {[%emt 0:00:15]} 5. Bd3 {[%emt 0:03:36]} d5 {
[%emt 0:04:32]} 6. exd5 {[%emt 0:02:41]} Qxd5 {[%emt 0:00:06] [#]} 7. O-O $1 {
[%emt 0:01:30][%cal Yb1c3]} Nd7 {[%emt 0:01:15] B42: Sicilian: Kan Variation:
5 Bd3.} (7... Qxd4 $2 8. Bb5+ $1 axb5 9. Qxd4 $18) 8. Be3 {[%emt 0:04:27]} Ngf6
{[%emt 0:05:07]} 9. c4 {[%emt 0:02:54]} Qe5 {[%emt 0:00:00] White is slightly
better.} 10. Nc3 {[%emt 0:01:40]} Qc7 {[%emt 0:06:17] [#]} 11. f4 $146 {
[%emt 0:09:00]} (11. Re1 $5 {[%cal Rc3d5]}) ({Predecessor:} 11. Rc1 b6 12. Nd5
exd5 13. Re1 Bd6 14. cxd5 Nc5 15. Bg5+ Kf8 16. b4 Bxh2+ 17. Kf1 {1-0 (33)
Dervishi,E (2450)-Horvath,C (2535) Montecatini Terme 1998}) 11... Bb4 {[%emt 0:
24:12]} 12. Rc1 {[%emt 0:12:01]} O-O {[%emt 0:00:58]} 13. Qf3 {[%emt 0:04:56]}
Re8 {[%emt 0:14:34]} 14. Bb1 {[%emt 0:09:53]} Bf8 {[%emt 0:00:00]} 15. a3 {
[%emt 0:09:06][%cal Yc4c5] [#]} g6 {[%emt 0:08:52]} ({Black should try} 15...
b6 $1 $11) 16. b4 {[%emt 0:01:16] [#]} (16. c5 $14) 16... b6 $1 $11 {[%emt 0:
03:44]} 17. Qxa8 {[%emt 0:24:31]} (17. Qe2 Bb7) 17... Bb7 {[%emt 0:00:05]
Prevents Qf3.} 18. Qxe8 {[%emt 0:00:08]} Nxe8 {[%emt 0:00:06]} 19. Ne4 {
[%emt 0:00:09] [#]} ({White should play} 19. Be4 $15) 19... Nef6 $1 $19 {
[%emt 0:02:53]} 20. Nxf6+ {[%emt 0:00:33]} Nxf6 {[%emt 0:00:06]} 21. h3 {
[%emt 0:01:26] [#] Prevents Ng4.} a5 $1 {[%emt 0:01:31]} 22. Nb5 {[%emt 0:00:
00]} (22. Bd2 $142) 22... Qc6 {[%emt 0:00:31][%csl Gb7][%cal Rc6g2]} 23. Rf2 {
[%emt 0:00:09]} axb4 {[%emt 0:00:08]} 24. axb4 {[%emt 0:00:05]} Bxb4 {[%emt 0:
00:00]} 25. Bd3 {[%emt 0:00:30]} Bc5 {[%emt 0:00:26]} 26. Bxc5 {[%emt 0:02:47]}
Qxc5 {[%emt 0:00:19]} 27. Re1 {[%emt 0:00:23]} Nh5 {[%emt 0:05:25] Strongly
threatening ...Nxf4.} 28. Re5 {[%emt 0:01:46]} Qb4 {[%emt 0:01:05][%cal Yh5f4]}
29. Ree2 {[%emt 0:02:19]} Qc5 {[%emt 0:02:44] Threatens to win with ...Nxf4.}
30. Re5 {[%emt 0:00:06]} Qe7 {[%emt 0:00:06] ...Qf6 is the strong threat.} 31.
Ree2 $2 {[%emt 0:01:56]} (31. Bf1 {was worth a try.}) 31... Qh4 {[%emt 0:01:14]
} 32. Nd6 $2 {[%emt 0:01:12]} (32. Re3 Nxf4 33. Bf1) 32... Nxf4 {[%emt 0:00:28]
Black is clearly winning.} 33. Re3 {[%emt 0:00:24]} Bxg2 {[%emt 0:01:20]} 34.
Rxg2 {[%emt 0:00:29]} Nxg2 {[%emt 0:00:07]} 35. Re4 {[%emt 0:00:38]} Qg3 {
[%emt 0:00:10] Weighted Error Value: White=0.71/Black=0.21 (precise)} 0-1

[Event "44th Chess Olympiad Open 2022"]
[Site "Chennai"]
[Date "2022.08.07"]
[Round "9.23"]
[White "Grandelius, Nils"]
[Black "Petkov, Momchil"]
[Result "1-0"]
[WhiteElo "2655"]
[BlackElo "2510"]
[Annotator "TA"]
[PlyCount "93"]
[EventDate "2022.??.??"]
[TimeControl "60"]

{[%evp 17,93,14,17,2,12,17,13,13,32,34,17,33,82,76,77,68,71,73,73,57,60,57,58,
58,59,53,59,60,68,69,69,71,72,72,72,72,72,72,72,58,65,65,66,66,65,62,86,85,94,
94,101,97,130,130,210,210,225,225,212,200,168,145,268,267,366,345,428,405,367,
345,605,378,1789,1655,1353,1125,1012,698]} 1. d4 {[%emt 0:00:16]} Nf6 {[%emt 0:
00:00]} 2. c4 {[%emt 0:00:37]} e6 {[%emt 0:00:17]} 3. g3 {[%emt 0:00:38]} d5 {
[%emt 0:00:24]} 4. Bg2 {[%emt 0:00:08]} Bb4+ {[%emt 0:00:23]} 5. Bd2 {[%emt 0:
00:00]} a5 {[%emt 0:00:16]} 6. Nf3 {[%emt 0:00:51]} O-O {[%emt 0:00:19]} 7. a3
{[%emt 0:00:10]} Be7 {[%emt 0:01:47]} 8. Qc2 {[%emt 0:00:34]} c6 {[%emt 0:00:
00]} 9. O-O {[%emt 0:00:23]} Nbd7 {[%emt 0:01:09]} 10. Rc1 {[%emt 0:00:07] E11:
Bogo-Indian.} h6 {[%emt 0:07:17]} 11. e3 {[%emt 0:10:37] [#]} Ra7 $146 {
[%emt 0:12:04]} ({Predecessor:} 11... Re8 12. Be1 Bf8 13. Nbd2 b5 14. cxb5 cxb5
15. Bf1 Ba6 16. Nb3 a4 17. Na5 Qb6 {½-½ (43) Gelfand,B (2676)-Ding,L (2791)
chess24.com INT 2020}) 12. Be1 {[%emt 0:02:28] The position is equal.} Ne4 {
[%emt 0:17:51]} 13. Nc3 {[%emt 0:14:02]} Nxc3 {[%emt 0:11:39]} 14. Qxc3 {
[%emt 0:05:39]} b5 {[%emt 0:00:00]} (14... b6 $14 {feels stronger.}) 15. cxb5 {
[%emt 0:12:17]} cxb5 {[%emt 0:00:00]} 16. Bf1 {[%emt 0:01:21]} b4 {[%emt 0:00:
00]} 17. axb4 {[%emt 0:03:07]} axb4 {[%emt 0:01:51]} 18. Qc6 {[%emt 0:09:16]}
Nb8 {[%emt 0:04:40]} 19. Qc2 {[%emt 0:05:21]} Rxa1 {[%emt 0:06:45]} 20. Rxa1 {
[%emt 0:03:46]} Qb6 {[%emt 0:04:09] Prevents Ra7.} 21. Ne5 {[%emt 0:00:00]} Bd6
{[%emt 0:03:29]} 22. Qa4 {[%emt 0:04:17]} Bxe5 {[%emt 0:06:57]} 23. dxe5 {
[%emt 0:00:03]} Nc6 {[%emt 0:00:04]} 24. Qb5 {[%emt 0:02:50]} Qxb5 {[%emt 0:00:
00]} 25. Bxb5 {[%emt 0:00:00]} Bd7 {[%emt 0:00:13]} 26. Bxc6 {[%emt 0:00:00]}
Bxc6 {[%emt 0:00:04]} 27. Bxb4 $16 {[%emt 0:00:02] Endgame KRB-KRB} Rb8 {
[%emt 0:00:51]} 28. Bc3 {[%emt 0:02:19]} Ra8 {[%emt 0:04:22]} 29. Rc1 {[%emt 0:
01:34]} Bb5 {[%emt 0:00:29]} 30. f3 {[%emt 0:01:28]} Ra4 {[%emt 0:00:00]} 31.
Kf2 {[%emt 0:01:45]} Kf8 {[%emt 0:00:13]} 32. g4 {[%emt 0:04:57]} Ke8 {[%emt 0:
03:09]} 33. Kg3 {[%emt 0:00:00]} g6 {[%emt 0:00:35]} 34. h4 {[%emt 0:00:00]}
Kd7 {[%emt 0:01:19]} 35. Rh1 {[%emt 0:04:30]} h5 {[%emt 0:02:01]} (35... Ra8
$16 {was necessary.} 36. h5 Rh8) 36. gxh5 $1 $18 {[%emt 0:00:02]} gxh5 {
[%emt 0:00:05] [#]} 37. Rg1 $1 {[%emt 0:00:20]} Bd3 {[%emt 0:00:53] [#]} 38.
Bd4 $1 {[%emt 0:02:29]} Rc4 {[%emt 0:00:37]} 39. Ra1 {[%emt 0:02:51]} Bg6 {
[%emt 0:00:14]} (39... Be2 $16 40. b3 Rc6) 40. Kf4 {[%emt 0:00:35]} Kc6 {
[%emt 0:02:54]} 41. Kg5 {[%emt 0:06:44]} Rc2 {[%emt 0:04:01]} 42. Ra5 {[%emt 0:
00:00]} Rc1 {[%emt 0:06:28]} 43. f4 {[%emt 0:06:29]} Rh1 $2 {[%emt 0:12:59]} (
43... Rc4 44. Ra6+ Kd7) 44. b4 {[%emt 0:02:18][%cal Yb2b4,Yb4b5,Yb5b6] b5+ is
the strong threat.} Rb1 $2 {[%emt 0:00:17]} (44... Rg1+ 45. Kf6 Rb1 46. Ra6+
Kd7 47. Ra7+ Ke8) 45. b5+ {[%emt 0:07:20] White is clearly winning.} Kb7 {
[%emt 0:08:58]} 46. Ra7+ {[%emt 0:00:30]} Kb8 {[%emt 0:00:26]} 47. b6 {[%emt 0:
00:00] Weighted Error Value: White=0.01 (flawless) /Black=0.24 (precise)} 1-0

[Event "44th Chess Olympiad Open 2022"]
[Site "Chennai"]
[Date "2022.08.07"]
[Round "9.23"]
[White "Hillarp Persson, Tiger"]
[Black "Yordanov, Lachezar"]
[Result "1/2-1/2"]
[WhiteElo "2516"]
[BlackElo "2316"]
[Annotator "TA"]
[PlyCount "91"]
[EventDate "2022.??.??"]
[TimeControl "60"]

{[%evp 9,91,0,0,-1,0,0,0,-10,-23,-26,0,-14,0,0,0,-20,-5,-23,-23,-30,-45,-54,
-52,-56,-54,-45,-54,-54,-14,-14,-15,-14,-14,-21,-22,-18,0,0,0,-18,-12,-30,-22,
-19,-31,-19,-24,-22,-22,-23,-7,-34,-4,-4,0,0,0,0,0,0,0,0,0,0,-10,-59,0,0,0,0,0,
0,0,0,0,0,0,0,0,0,0,0,0,0]} 1. Nf3 {[%emt 0:00:07]} Nf6 {[%emt 0:00:09]} 2. g3
{[%emt 0:00:09]} e6 {[%emt 0:00:05]} 3. Bg2 {[%emt 0:00:09]} d5 {[%emt 0:00:06]
} 4. O-O {[%emt 0:00:06]} Be7 {[%emt 0:00:05]} 5. d3 {[%emt 0:01:16]} O-O {
[%emt 0:00:09]} 6. a4 {[%emt 0:00:46] A07: Réti Opening: New York and
Capablanca Systems.} c5 {[%emt 0:05:23]} 7. e4 {[%emt 0:00:58]} Nc6 {[%emt 0:
00:00]} 8. e5 {[%emt 0:01:10]} Nd7 {[%emt 0:00:09]} 9. Re1 {[%emt 0:01:54] [#]}
Re8 $146 {[%emt 0:16:22]} ({Predecessor:} 9... b6 10. h4 {1-0 (10) Alonso,S 
(1310)-Van Erps,G (1526) LSS email 2019}) 10. h4 {[%emt 0:03:19]} f6 {[%emt 0:
00:00]} 11. exf6 {[%emt 0:00:15]} Nxf6 {[%emt 0:00:06]} 12. Nbd2 {[%emt 0:00:
00][%cal Yb1d2,Yd2f1,Yf1e3,Ye3g4]} Bd6 {[%emt 0:06:52]} 13. Nf1 {[%emt 0:00:09]
} h6 {[%emt 0:03:58]} 14. Ne3 {[%emt 0:02:11]} e5 {[%emt 0:08:54]} 15. Nh2 {
[%emt 0:05:14]} Be6 {[%emt 0:05:39]} 16. Nhg4 {[%emt 0:02:56]} Nxg4 {[%emt 0:
00:00]} 17. Nxg4 {[%emt 0:00:07]} Qd7 {[%emt 0:00:00]} 18. Ne3 {[%emt 0:03:49]}
Bf8 {[%emt 0:02:16]} 19. c4 {[%emt 0:08:39]} dxc4 {[%emt 0:00:00]} 20. dxc4 {
[%emt 0:00:09]} Nd4 {[%emt 0:00:24]} 21. Bd2 {[%emt 0:01:39]} Rad8 {[%emt 0:01:
17]} 22. Bc3 {[%emt 0:00:33]} Qf7 {[%emt 0:00:56]} 23. Nd5 {[%emt 0:00:37]} Bd6
{[%emt 0:01:05]} 24. Bxd4 {[%emt 0:10:20]} exd4 {[%emt 0:00:00]} 25. Qd2 {
[%emt 0:02:22]} Kh8 {[%emt 0:04:37]} 26. a5 {[%emt 0:00:10]} Bf5 {[%emt 0:02:
06]} 27. Rxe8+ {[%emt 0:11:39]} Rxe8 {[%emt 0:00:43]} 28. Re1 {[%emt 0:00:09]}
Rxe1+ {[%emt 0:03:46]} 29. Qxe1 {[%emt 0:00:07]} Qe6 {[%emt 0:00:00]} 30. Qd2 {
[%emt 0:01:53]} Qe8 {[%emt 0:01:33]} 31. b3 {[%emt 0:19:01]} Qd8 {[%emt 0:09:
17]} 32. Bf1 {[%emt 0:00:00]} Be4 {[%emt 0:01:52]} 33. Bd3 {[%emt 0:00:00]}
Bxd3 {[%emt 0:00:36]} 34. Qxd3 {[%emt 0:00:00]} Qxa5 $11 {[%emt 0:00:30]
Endgame KQB-KQN} 35. Qe4 {[%emt 0:00:00] Against Qe1+} Qd8 {[%emt 0:00:57]
Prevents Qe8+.} 36. Qe6 {[%emt 0:00:43]} a6 {[%emt 0:00:00]} 37. f4 {[%emt 0:
13:53]} (37. Kg2 $1 $11) 37... Qb8 {[%emt 0:00:00]} (37... b5 $15) 38. Kg2 {
[%emt 0:00:33] The position is equal.} b5 {[%emt 0:00:00]} 39. f5 {[%emt 0:00:
28] [#] Black must now prevent f6.} Be5 {[%emt 0:00:00]} 40. Ne7 {[%emt 0:00:
17]} Bf6 {[%emt 0:00:00]} (40... Bxg3 $2 41. f6 Bxh4 42. fxg7+ Kxg7 43. Qg6+
Kf8 44. Qg8+ Kxe7 45. Qxb8 $18) 41. Ng6+ {[%emt 0:30:20]} Kh7 {[%emt 0:28:19]}
42. Qf7 {[%emt 0:00:00]} Qa8+ {[%emt 0:00:00]} 43. Kh2 {[%emt 0:00:00]} Qf3 {
[%emt 0:00:00]} (43... d3 $5 44. Nf8+ Kh8 45. Ng6+ Kh7 46. Nf8+ Kh8 47. Ng6+
Kh7 $11) 44. Nf8+ {[%emt 0:00:00]} Kh8 {[%emt 0:00:00]} 45. Ng6+ {[%emt 0:00:
00]} Kh7 {[%emt 0:00:00]} 46. Nf8+ {[%emt 0:00:00] Weighted Error Value:
White=0.04 (flawless) /Black=0.06 (flawless)} 1/2-1/2

[Event "44th Chess Olympiad Open 2022"]
[Site "Chennai"]
[Date "2022.08.07"]
[Round "9.23"]
[White "Stoyanov, Tsvetan"]
[Black "Blomqvist, Erik"]
[Result "1/2-1/2"]
[WhiteElo "2450"]
[BlackElo "2521"]
[Annotator "TA"]
[PlyCount "102"]
[EventDate "2022.??.??"]
[TimeControl "60"]

{[%evp 15,102,27,33,25,18,7,16,16,14,18,17,19,16,16,13,16,11,11,22,23,26,24,26,
19,23,22,31,7,22,25,18,20,29,16,22,19,19,19,18,9,12,7,9,5,7,6,9,0,1,0,10,0,1,0,
0,0,0,-8,-8,-8,0,0,0,0,0,0,0,0,0,0,0,0,0,0,0,0,0,0,0,0,0,0,0,0,0,0,0,0,0]} 1.
e4 {[%emt 0:00:06]} c5 {[%emt 0:00:09]} 2. Nf3 {[%emt 0:00:05]} d6 {[%emt 0:00:
00]} 3. d4 {[%emt 0:00:14]} cxd4 {[%emt 0:00:07]} 4. Nxd4 {[%emt 0:00:06]} Nf6
{[%emt 0:00:07]} 5. Nc3 {[%emt 0:00:08]} Nc6 {[%emt 0:00:08]} 6. Bc4 {[%emt 0:
00:00]} Qb6 {[%emt 0:00:34]} 7. Nxc6 {[%emt 0:00:17]} bxc6 {[%emt 0:00:08]} 8.
O-O {[%emt 0:00:15]} g6 {[%emt 0:00:14]} 9. Qe1 {[%emt 0:00:38] B57: Classical
Sicilian: Sozin with 6...Qb6.} Qc7 {[%emt 0:00:41] Nowadays more popular than
9...Qc5.} 10. Bf4 {[%emt 0:01:11] [#] Hoping for e5.} Nd7 {[%emt 0:00:30]
Against e5} 11. Qd2 {[%emt 0:00:58]} Bg7 {[%emt 0:02:54]} 12. Bh6 {[%emt 0:00:
00]} O-O {[%emt 0:01:02]} 13. Bxg7 {[%emt 0:00:16]} Kxg7 {[%emt 0:00:05]} 14.
b3 {[%emt 0:01:24] [#]} Rd8 $146 {[%emt 0:09:38]} ({Predecessor:} 14... Bb7 15.
Rfe1 Qa5 16. Re3 Rad8 17. Rh3 Nf6 18. e5 Nh5 19. Qg5 h6 20. Qxe7 Bc8 21. Rxh5
Qxc3 22. Rf1 Qxc2 23. Qf6+ Kh7 24. e6 Bxe6 25. Bxe6 Qe2 26. Ra5 {½-½ (26)
Dvirnyy,D (2458)-Caruana,F (2640) Martina Franca 2008}) 15. Rad1 {[%emt 0:00:
00]} Qa5 {[%emt 0:02:00]} 16. f4 {[%emt 0:07:09]} f6 {[%emt 0:08:15]} 17. Kh1 {
[%emt 0:06:20]} Nb6 {[%emt 0:03:44]} 18. Be2 {[%emt 0:03:29]} Be6 {[%emt 0:00:
00]} 19. Qe3 {[%emt 0:01:33]} Bf7 {[%emt 0:01:33]} 20. Bf3 {[%emt 0:13:36]} e5
{[%emt 0:05:16]} 21. Be2 {[%emt 0:08:34]} Qc5 {[%emt 0:22:51]} 22. Qxc5 {
[%emt 0:06:51]} dxc5 {[%emt 0:00:06]} 23. fxe5 {[%emt 0:00:04]} fxe5 {[%emt 0:
00:00]} 24. Ba6 {[%emt 0:00:13]} Rab8 $1 {[%emt 0:01:44] Against Bb7. The
position is equal.} 25. Kg1 {[%emt 0:09:32]} c4 {[%emt 0:12:42]} 26. Rxd8 {
[%emt 0:19:09]} Rxd8 {[%emt 0:00:05]} 27. Rd1 {[%emt 0:00:04]} Rxd1+ {[%emt 0:
00:00]} 28. Nxd1 {[%emt 0:00:01]} cxb3 {[%emt 0:00:18]} 29. axb3 $11 {[%emt 0:
00:00] Endgame KBN-KBN} Kf6 {[%emt 0:03:16]} 30. Kf2 {[%emt 0:00:46]} g5 {
[%emt 0:00:37]} 31. Ke3 {[%emt 0:00:51]} h5 {[%emt 0:02:44]} 32. Nf2 {[%emt 0:
01:47]} Ke7 {[%emt 0:01:38]} 33. Kd2 {[%emt 0:04:44]} Nd7 {[%emt 0:00:00]} 34.
b4 {[%emt 0:01:19]} Kd6 {[%emt 0:03:42]} 35. Bc8 {[%emt 0:00:40]} Nb6 {[%emt 0:
03:42]} 36. Bf5 {[%emt 0:00:25]} Nc4+ {[%emt 0:01:57]} 37. Kd3 {[%emt 0:00:14]}
Ke7 {[%emt 0:02:40]} 38. g4 {[%emt 0:00:46]} h4 {[%emt 0:01:51]} 39. Nh3 {
[%emt 0:00:18]} Kf6 {[%emt 0:00:19]} 40. Bd7 {[%emt 0:00:25]} a5 {[%emt 0:00:
33]} 41. bxa5 {[%emt 0:08:45]} Nxa5 {[%emt 0:02:01]} 42. Kc3 {[%emt 0:05:08]}
c5 {[%emt 0:01:57]} 43. Bb5 {[%emt 0:00:59]} Nb7 {[%emt 0:00:00]} 44. Bc6 {
[%emt 0:01:56]} Nd6 {[%emt 0:00:23]} 45. Kd2 {[%emt 0:04:54]} Bc4 {[%emt 0:01:
15]} 46. Ke1 {[%emt 0:00:42]} Nc8 {[%emt 0:07:26]} 47. Nf2 {[%emt 0:03:47]} Nd6
{[%emt 0:01:03]} 48. Nd1 {[%emt 0:02:32]} Be6 {[%emt 0:00:00]} 49. Nf2 {
[%emt 0:00:14]} Bc8 {[%emt 0:02:19]} 50. Ke2 {[%emt 0:05:07]} Ba6+ {[%emt 0:00:
48]} 51. Ke1 {[%emt 0:00:00]} Bc8 {[%emt 0:01:22] A balanced but interesting
game. Weighted Error Value: White=0.02 (flawless) /Black=0.01 (flawless)}
1/2-1/2

[Event "44th Chess Olympiad Open 2022"]
[Site "Chennai"]
[Date "2022.08.07"]
[Round "9.23"]
[White "Georgiev, Todor"]
[Black "Westerberg, Jonathan"]
[Result "1/2-1/2"]
[WhiteElo "2272"]
[BlackElo "2476"]
[Annotator "TA"]
[PlyCount "93"]
[EventDate "2022.??.??"]
[TimeControl "60"]

{[%evp 9,93,18,18,23,25,15,18,-16,11,15,23,21,69,72,62,63,83,72,90,79,82,59,86,
87,107,90,91,85,85,104,87,62,82,77,82,62,55,58,67,52,54,43,67,52,68,67,76,55,
61,54,54,55,76,76,76,76,83,83,84,83,83,83,98,98,107,129,119,91,91,91,91,91,91,
0,91,0,91,0,91,91,91,0,91,0,83,0]} 1. d4 {[%emt 0:00:11]} d5 {[%emt 0:00:12]}
2. c4 {[%emt 0:00:28]} dxc4 {[%emt 0:00:07]} 3. e4 {[%emt 0:01:31][%cal Ye2e4,
Ye4e5]} Nf6 {[%emt 0:00:05]} 4. e5 {[%emt 0:00:36]} Nd5 {[%emt 0:00:00]} 5.
Bxc4 {[%emt 0:00:19]} Bf5 {[%emt 0:00:45]} 6. Qb3 {[%emt 0:14:48][%csl Yb7,Yd5]
Prevents Nb4. D20: Queen's Gambit Accepted: 3 e3 and 3 e4.} c6 {[%emt 0:00:41]}
7. Nc3 {[%emt 0:02:43][%cal Rc3d5]} (7. Bxd5 $5 cxd5 8. Qxb7 $11) 7... e6 {
[%emt 0:00:14] [#]} 8. Be3 $146 {[%emt 0:22:54] The position is equal.} ({
Don't take} 8. Qxb7 $6 Nb6 $16) ({Predecessor:} 8. Qxb7 Nb6 9. Be2 Bb4 10. Nf3
O-O 11. Be3 f6 12. d5 cxd5 13. exf6 Qxf6 14. Bd4 {1-0 (46) Van Wely,L (2663)
-Dorfman,J (2560) Chartres 2017}) 8... Nb4 {[%emt 0:17:32] [#] Strongly
threatening ...Bc2.} 9. Rc1 {[%emt 0:01:08] Against Bc2} b5 {[%emt 0:00:00]}
10. Be2 {[%emt 0:01:58]} Nd3+ {[%emt 0:03:26]} (10... Be7 $11) 11. Bxd3 $14 {
[%emt 0:00:20]} Bxd3 {[%emt 0:00:03]} 12. Qd1 {[%emt 0:04:18]} Bg6 {[%emt 0:05:
28]} 13. Nge2 {[%emt 0:06:35]} Nd7 {[%emt 0:07:26]} 14. Nf4 {[%emt 0:03:33]}
Rc8 {[%emt 0:09:00]} 15. O-O {[%emt 0:09:38]} Bf5 {[%emt 0:00:00][%cal Yh7h5]}
16. Qf3 {[%emt 0:02:28]} Nb6 {[%emt 0:00:39]} 17. Rfd1 {[%emt 0:10:32][%cal
Yd4d5]} b4 {[%emt 0:01:14]} 18. Nce2 {[%emt 0:03:37]} Nd5 {[%emt 0:02:35][%cal
Yh7h5]} 19. Ng3 {[%emt 0:02:22]} Bg6 {[%emt 0:01:24]} 20. Nxd5 {[%emt 0:02:08]}
exd5 {[%emt 0:02:58]} 21. Nh5 {[%emt 0:03:19]} Qd7 {[%emt 0:09:08]} 22. Qe2 {
[%emt 0:03:44] White is more active.} Bxh5 {[%emt 0:00:00]} 23. Qxh5 {[%emt 0:
00:02][%cal Ye5e6]} Be7 {[%emt 0:00:08]} 24. f4 {[%emt 0:01:41]} g6 {[%emt 0:
02:00] Against f5} 25. Qf3 {[%emt 0:00:32]} f5 {[%emt 0:00:30]} 26. Qe2 {
[%emt 0:00:32]} Qb7 {[%emt 0:01:23] Prevents Qa6.} 27. Rc2 {[%emt 0:01:11]} O-O
{[%emt 0:01:04]} 28. Rdc1 {[%emt 0:00:16]} Rc7 {[%emt 0:02:18]} 29. Qd3 {
[%emt 0:00:22]} a5 {[%emt 0:00:11]} 30. Qb3 {[%emt 0:00:00][%cal Yc2c6] [#]
Black must now prevent Rxc6!} Qb5 {[%emt 0:00:09] And now ...a4 would win.} 31.
a4 {[%emt 0:00:21]} Qa6 {[%emt 0:00:36]} 32. Bf2 {[%emt 0:00:44]} (32. Rxc6 $2
Rxc6 33. Qxd5+ Re6 $19) 32... Rb8 {[%emt 0:08:16]} 33. h3 {[%emt 0:00:25]} Rf8
{[%emt 0:01:23]} 34. Qf3 {[%emt 0:00:44]} ({Reject} 34. Rxc6 Rxc6 35. Qxd5+ Re6
$17) 34... Rf7 {[%emt 0:01:54]} 35. b3 {[%emt 0:00:00]} Qc8 {[%emt 0:01:24]}
36. Qe2 {[%emt 0:00:25]} Kg7 {[%emt 0:01:34]} 37. Qe1 {[%emt 0:00:49]} h6 {
[%emt 0:01:23]} 38. Be3 {[%emt 0:00:37]} Rf8 {[%emt 0:00:00]} 39. Qe2 {[%emt 0:
00:28]} Rf7 {[%emt 0:02:57]} 40. Qd3 {[%emt 0:00:53]} Rf8 {[%emt 0:01:18]} 41.
Qe2 {[%emt 0:30:12]} Rf7 $1 {[%emt 0:30:33]} 42. Qe1 {[%emt 0:00:00]} Rf8 {
[%emt 0:00:00]} 43. Bf2 {[%emt 0:00:00]} (43. Qg3 $16) 43... Qe6 {[%emt 0:00:
00]} (43... Rf7 $1 $11 {keeps the balance.}) 44. Qe2 $16 {[%emt 0:00:00]} Qc8 {
[%emt 0:00:00] Prevents Qa6.} 45. Qe1 {[%emt 0:00:00]} Qe6 {[%emt 0:00:00]} 46.
Qe2 {[%emt 0:00:00]} Qc8 $1 {[%emt 0:00:00] Prevents Qa6.} 47. Qe1 {[%emt 0:01:
40] Weighted Error Value: White=0.16 (very precise) / Black=0.09 (flawless)} ({
Better is} 47. Rd1 $16) 1/2-1/2